Cogmind - Beta 15 @@@ ROGUE MODE // 2025.07.22 @ 10:56:53 Player: winnking222 Result: Destroyed by S-10 Pest with Light Assault Rifle Performance ------------- Evolutions (0) 0 Regions Visited (1) 200 Robots Destroyed (18) 90 Value Destroyed (362) 362 Prototype IDs (4) 80 Alien Tech Used (0) 0 Bonus (0) 0 TOTAL SCORE: 732 Bonus ------- None Cogmind --------- Core Integrity 0/250 Matter 300/300 Energy 125/125 System Corruption 0% Temperature Cool (0) Movement Walking (120) Location -10/Materials Parts ------- > --- POWER (1) -------- Light Ion Engine > --- PROPULSION (2) --- Aluminum Leg Aluminum Leg > --- UTILITY (2) ------ Heat Sink Small Storage Unit > --- WEAPON (2) ------- Small Laser Small Laser > --- INVENTORY (8) ---- Ion Engine Heat Sink Heat Sink Heat Sink Seismic Detector Seismic Detector Light Assault Rifle Peak State ------------ > --- POWER ------------ Light Ion Engine > --- PROPULSION ------- Light Treads Light Treads > --- UTILITY ---------- Small Storage Unit Seismic Detector > --- WEAPON ----------- Assault Rifle Light Assault Rifle > --- INVENTORY -------- Light Ion Engine Wheel Seismic Detector Seismic Detector [Rating: 7] Favorites ----------- Power Light Ion Engine Engine Light Ion Engine Propulsion Light Treads Treads Light Treads Leg Aluminum Leg Wheel Wheel Utility Small Storage Unit Device Heat Sink Storage Small Storage Unit Weapon Small Laser Energy Gun Small Laser Ballistic Gun Light Assault Rifle Build | -11 -10 ------- Run | Yrd Mat Slots Evolved . | . . Power . | . . Propulsion . | . . Utility . | . . Weapon . | . . Parts Attached 15 | 7 8 Power 2 | 1 1 Engine 2 | 1 1 Core . | . . Reactor . | . . Propulsion 6 | 2 4 Treads 2 | 2 . Leg 3 | . 3 Wheel 1 | . 1 Hover . | . . Flight . | . . Utility 3 | 2 1 Device 2 | 1 1 Storage 1 | 1 . Processor . | . . Hackware . | . . Protection . | . . Artifact . | . . Weapon 4 | 2 2 Energy Gun 2 | . 2 Energy Cannon . | . . Ballistic Gun 2 | 2 . Ballistic Cannon . | . . Launcher . | . . Special Weapon . | . . Impact Weapon . | . . Slashing Weapon . | . . Piercing Weapon . | . . Special Melee Weapon . | . . Unidentified Prototypes . | . . Parts Lost 7 | . 7 Power 1 | . 1 Propulsion 4 | . 4 Utility 1 | . 1 Weapon 1 | . 1 Highest Loss Streak 4 | . 4 To Critical Strikes . | . . Average Backups 4 | 3 5 Power . | . . Propulsion . | . . Utility 3 | 1 3 Weapon . | . . Tool/Special . | . . Unused Backups 6 | . 6 Power 1 | . 1 Propulsion . | . . Utility 5 | . 5 Weapon . | . . Tool/Special . | . . Average Slot Usage (%) 95 | . 95 Engine 13 | . 13 Treads 7 | . 7 Leg 14 | . 14 Wheel 4 | . 4 Device 12 | . 12 Storage 14 | . 14 Energy Gun 16 | . 16 Ballistic Gun 10 | . 10 Peak Build Rating 7 | 7 7 Average Rating 6 | 5 6 On Entrance 3 | . 7 Naked Turns . | . . Heaviest Build 12 | 12 12 Greatest Support 40 | 40 40 Greatest Overweight (x) 3 | . 3 Average Overweight (x) . | . . Largest Inventory Capacity 8 | 8 8 Average Capacity 7 | 7 8 Most Carried 8 | 5 8 Average Carried 4 | 3 5 Final Capacity 8 | 8 8 Final Carried 7 | 4 7 Class Distribution -------------------- 57% | Mutant 42% | Scavenger-Mutant Dominant Class ---------------- Scavenger-Mutant | -10/Materials Resources | -11 -10 ----------- Run | Yrd Mat Matter Collected 495 | 334 161 Remotely . | . . Salvage Created 590 | 171 419 Parts 46 | 15 31 Haulers Intercepted 1 | . 1 Recyclers Shooed 1 | . 1 Parts Field Recycled . | . . Retrieved Matter . | . . Parts Self-Destructed . | . . Prevented . | . . Kills | -11 -10 ------- Run | Yrd Mat Combat Hostiles Destroyed 10 | . 10 Guns 10 | . 10 Classes Destroyed 6 | 2 4 Worker 1 | . 1 Tunneler 5 | 5 . Hauler 1 | . 1 Recycler 1 | 1 . Swarmer 2 | . 2 Grunt 8 | . 8 Best Kill Streak 3 | 3 3 Combat Bots Only 2 | . 2 Max Kills in Single Turn 1 | 1 1 Gunslinging . | . . Exploded . | . . Melee . | . . Uniques/NPCs Destroyed . | . . Combat | -11 -10 -------- Run | Yrd Mat Hostile Shots Fired 79 | . 79 Missed 18 | . 18 Hits 61 | . 61 Projectile 61 | . 61 Critical Strikes 2 | . 2 Damage Taken 915 | . 915 Core 254 | . 254 Absorbed by Shields . | . . Core Remaining (%) 100 | 100 . Volleys Fired 71 | 16 55 Largest 2 | 2 2 Hottest 80 | 40 80 Shots Fired 124 | 32 92 Gun 124 | 32 92 Cannon . | . . Launcher . | . . Special . | . . Kinetic 94 | 32 62 Thermal 30 | . 30 Explosive . | . . Electromagnetic . | . . Robot Hit Streak 9 | 6 9 Robot Miss Streak 4 | 3 4 Penetration Max . | . . Secondary Targets 1 | . 1 Max Gunslinging Chain 1 | . 1 Shots Hit Robots 79 | 16 63 Core Hits 34 | 8 26 Critical Kills . | . . Critical Parts Destroyed 1 | . 1 Critical Strikes 1 | . 1 Destroy 1 | . 1 Melee Attacks . | . . Impact . | . . Slashing . | . . Piercing . | . . Sneak Attacks . | . . Combat Hostiles . | . . Follow-up Attacks . | . . Damage Inflicted 822 | 172 650 Guns 822 | 172 650 Cannons . | . . Explosions . | . . Melee . | . . Ramming . | . . Kinetic 608 | 172 436 Thermal 214 | . 214 Explosive . | . . Electromagnetic . | . . Impact . | . . Slashing . | . . Piercing . | . . Highest Corruption . | . . Average Corruption . | . . Corruption Purged . | . . Corruption Blocked . | . . Overload Shots . | . . Overflow Damage . | . . Projectiles . | . . Explosions . | . . Melee . | . . Knockbacks . | . . Impact . | . . Kinetic . | . . Secondary . | . . Self-Inflicted Damage . | . . Shots . | . . Rammed . | . . Targets Rammed . | . . Kicked . | . . Crushed . | . . Highest Temperature 42 | . 42 Average Temperature 16 | . 16 Received Heat Transfer 390 | . 390 Siege Activations . | . . Martial Activations . | . . Shielding Activations . | . . Robots Disrupted . | . . Combat Hostiles . | . . Robots Corrupted . | . . Combat Hostiles . | . . Parts Fried . | . . Impact Corruptions . | . . Robots Melted . | . . Combat Hostiles . | . . Parts Melted . | . . Heat Transferred 500 | . 500 Parts Sabotaged . | . . Parts Stolen . | . . Parts Stripped . | . . Power Chain Reactions . | . . Alert | -11 -10 ------- Run | Yrd Mat Maximum Alert Level . | . . Low Security (%) 100 | 100 100 Level 1 . | . . Level 2 . | . . Level 3 . | . . Level 4 . | . . Level 5 . | . . High Security . | . . Max Security . | . . Peak Influence 50 | 10 50 Initial . | . . Average 9 | 1 11 Influence Increases 286 | 30 256 Destroy 0b10 Robot/C 200 | . 200 Destroy 0b10 Robot/NC 40 | 30 10 Destroy Leader 32 | . 32 Successful Hack 14 | . 14 Influence Decreases 254 | 30 224 Time Decay 204 | 30 174 Lost Part 30 | . 30 Purge Threat 20 | . 20 Squads Dispatched 2 | . 2 Investigation . | . . Extermination . | . . Reinforcement 2 | . 2 Assault . | . . Garrison . | . . Intercept . | . . Searches Triggered . | . . Construction Impeded . | . . Haulers Reinforced . | . . Active Scanning Responses . | . . Cargo Convoy Interrupts . | . . Stealth | -11 -10 --------- Run | Yrd Mat Distress Signals 2 | . 2 Communications Jammed . | . . Distress Signals . | . . Times Spotted 15 | . 15 Peak Tracking Total 3 | . 3 Tactical Retreats . | . . Traps | -11 -10 ------- Run | Yrd Mat Traps Triggered 1 | . 1 Indirectly . | . . Trap Hack Attempts . | . . Triggered . | . . Disarmed . | . . Reprogrammed . | . . Reused . | . . Traps Extracted . | . . Installed . | . . Triggered . | . . Machines | -11 -10 ---------- Run | Yrd Mat Machines Disabled . | . . Max in Single Turn . | . . Machines Repaired . | . . Machines Dismantled . | . . Machines Sabotaged . | . . Overloaded Fab Kills . | . . Hacking | -11 -10 --------- Run | Yrd Mat Machines Accessed 4 | . 4 Terminals 4 | . 4 Fabricators . | . . Repair Stations . | . . Recycling Units . | . . Scanalyzers . | . . Garrison Access . | . . Total Hacks 6 | . 6 Successful 4 | . 4 Failed 2 | . 2 Catastrophic . | . . Database Lockouts . | . . Manual . | . . Terminals 6 | . 6 Fabricators . | . . Repair Stations . | . . Recycling Units . | . . Scanalyzers . | . . Garrison Access . | . . Terminal Hacks 4 | . 4 Prototype ID Bank 2 | . 2 Unreport Threat 1 | . 1 Locate Traps 1 | . 1 Fabricator Hacks . | . . Repair Station Hacks . | . . Recycling Unit Hacks . | . . Scanalyzer . | . . Garrison Access Hacks . | . . Unauthorized Hacks . | . . Terminals . | . . Fabricators . | . . Repair Stations . | . . Recycling Units . | . . Scanalyzers . | . . Garrison Access . | . . Data Cores Recovered . | . . Used . | . . Hacking Detections 1 | . 1 Full Trace Events . | . . Feedback Events . | . . Feedback Blocked . | . . Robot Schematics Acquired . | . . Robots Built . | . . Authchips . | . . Time . | . . Total Robot Build Rating . | . . Part Schematics Acquired . | . . Parts Built . | . . Authchips . | . . Time . | . . Total Part Build Rating . | . . Parts Repaired . | . . Time . | . . Parts Recycled . | . . Recycled Matter . | . . Retrieved Matter . | . . Retrieved Components . | . . Parts Scanalyzed . | . . Part Schematics Acquired . | . . Parts Damaged . | . . Bothacking | -11 -10 ------------ Run | Yrd Mat Used RIF Installer . | . . Robots Hacked . | . . Non-combat . | . . Combat . | . . Robot Hacks Applied . | . . Relay Couplers Released . | . . Fabnet Peak Effective % . | . . Robots Rewired . | . . Allies Hacked . | . . Hacks Repelled . | . . Allies | -11 -10 -------- Run | Yrd Mat Total Allies . | . . Largest Group . | . . Highest-Rated Group . | . . Highest-Rated Ally . | . . Total Orders . | . . Ally Attacks . | . . Total Damage . | . . Kills . | . . Allies Corrupted . | . . Allies Melted . | . . Intel | -11 -10 ------- Run | Yrd Mat Active Infowar (turns) 261 | 51 210 Seismic 261 | 51 210 Robot Analysis Total . | . . Derelict Logs Recovered . | . . Drone Launches . | . . Drone Recoveries . | . . Exploration | -11 -10 ------------- Run | Yrd Mat Turns Passed 856 | 230 626 Spaces Moved 426 | 117 309 Core 21 | 17 4 Treads 156 | 100 56 Legs 247 | . 247 Wheels 2 | . 2 Hover . | . . Flight . | . . Fastest Speed 50 | 50 80 Average Speed 139 | 144 137 Slowest Speed 200 | 160 200 Overloaded Moves . | . . Propulsion Burnouts . | . . Robots Hopped . | . . Potential Cave-ins . | . . Cave-ins Triggered . | . . Exploration Rate (%) 32 | 5 60 Regions Visited 1 Branch Regions . Pre-discovered Areas . | . . Known Exits Taken . | . . Unknown Exits Taken 1 | 1 . Scrap Searched . | . . Spaces Dug . | . . Terrain Destroyed . | . . Melee . | . . Projectile . | . . AOE . | . . Terrain Rammed . | . . Walls Destroyed . | . . Machines Disabled . | . . Actions | -11 -10 --------- Run | Yrd Mat Total 574 | 149 425 Wait 43 | . 43 Move 425 | 116 309 Hop . | . . Pick Up 20 | 10 10 Fast Attach 1 | 1 . Attach 13 | 6 7 Detach . | . . Swap 1 | . 1 Drop . | . . Fire 71 | 16 55 Melee . | . . Ram . | . . Kick . | . . Crush . | . . Escape Stasis . | . . Rewire . | . . Trap . | . . Miscellaneous . | . . Route ------- -11/Scrapyard -10/Materials (discovered 3 exits: [*Mat] / [*Min] / [*Sub]) History --------- Turn | Location | Event 22 | -11/Scrapyard | Discovered new exit (range 15) 231 | -11/Scrapyard | Entered Materials 308 | -10/Materials | Build established: Mutant 406 | -10/Materials | Core integrity fell below 50% 436 | -10/Materials | Lost 4 parts (1p2n1w) 618 | -10/Materials | Discovered new exit (range 16) 661 | -10/Materials | Discovered new exit (range 8) 701 | -10/Materials | Discovered new exit (range 8) 712 | -10/Materials | Core integrity fell below 20% 857 | -10/Materials | Destroyed by S-10 Pest with Light Assault Rifle Last Messages --------------- 00624_ R-06 Scavenger collects Sml. Laser. 00625_ T-07 Excavator is excavating. 00625_ K-01 Serf collects debris. 00627_ Acquired Heat Sink. 00629_ K-01 Serf collects debris. 00629_ T-07 Excavator is excavating. 00631_ K-01 Serf destroyed. 00632_ Acquired 20 matter. 00633_ T-07 Excavator is excavating. 00661_ EXIT=FOUND 00662_ T-07 Excavator is excavating. 00667_ R-06 Scavenger collects Wheel. 00701_ EXIT=FOUND 00711_ Triggered EMP Trap. 00711_ A bubble of electromagnetic force engulfs the area. 00726_ U-05 Engineer lays Concrete. 00735_ K-01 Serf cleans the Hadron Collector. 00844_ S-10 Pest destroyed. 00847_ ALERT: Hostiles spotted, dispatching reinforcements to Terminal M002. Map ----- +----------------------------------------------------+ | ????????????????????????????? | | ????????????????????????????? | | ????????????????????????????? | | ????????????????????????????? | | ?????###????????????????????? | | ???? ??????????????????? | | ????? ?????????????????? | | ????? ????????????????? | | ????? ?????##########?? | | ????? ? ????# #?? | | ????T ?""" ????# #?? | | ????" ? """ ##### #?? | | ???#" """ # #?? | | ???#" """ + #?? | | ???#= # #?? | | ???#= # #?? | | ???#= # #?? | | ???#%##### + #?? | | ???#*#???# ##### ##########?? | | ???#s#???#?????# #??????????? | | ???# #?????????# #??????????? | | ???# #####+?#### ############ | | ???# # ! ?# | | ???# # # | | ???# # """ # | | ???#@# """ + ###+######### | | ???# # """ # #???????????? | | ???# # *# #???????????? | | ???# ######## #???????????? | | ???# # # #?????????? ^ | | ???# + """ # #?????????? | | ???# # """ # #?????????# | | ???# # """ + #?????????# | | ???# # # #?????????#^ | | ???# # # #?????????# | | ???# ######## #?????????# | | ???# # #?????????# | | ???# # +?????????# | | ???# # #?????????# | | ???# # #### #?????????# | | ???# # ????# #?????????# | | ???# # ?????# #?????????# | | ???# #??????# #?????????# | | ???# #??????# #?????????# | | ???# ######## #????????## | | ???# #????###### | | ???#+#########+####### " | | ?? ?# ##"" | | ?# # """ """ ##" | | ?# """ # """ """ # " | +----------------------------------------------------+ Best States ------------- Heat Dissipation 35 Energy Generation 10 Energy Capacity 125 Matter Stores 300 Matter Capacity 300 Sight Range 16 Terrain Scan Density 10 Evasion (%) 55 Recoil Reduction 2 Item Schematics ----------------- None Robot Schematics ------------------ None Fabricated ------------ Nothing Repaired ---------- Nothing Alien Tech Used ----------------- None Achievements -------------- None Challenges ------------ None Game ------ Seed ProcessingDispersalWarhead Manual? 0 Play Time 00:08:19 Cumulative 105.1 hours Start 2025.07.22 @ 10:52:05 End 2025.07.22 @ 10:56:53 Sessions 1 Manual Loads 0 Difficulty Rogue Special Mode None Game No. 164 Rogue 164 Adventurer 0 Explorer 0 Win Type - Total 1 Types 1/0/0/0/0/0/0/0/0/0 Lore% 64 Gallery% 54 Achievement% 48 Wizard Run 0 Options --------- Layout 0 ASCII 0 Keyboard 0 Movement Mouse Keybinds 0 Fullscreen 1 Font 16/SmallcapsGlow Map View 75x55 Zoom Use 0% Tactical HUD 1 Map Filters NONE Filters NONE Steam 1 RUN: bc305fe8-6119-4336-a93b-12fe1ed9bd7e